bitfinex/quotes_SOLUSD_20220307
["timestamp","ask_amount","ask_price","bid_price","bid_amount"]
[1646618690407,48.45315743,83.09,83.022,59.51099095]
[1646618690607,6.019,83.089,83.022,59.51099095]
[1646618690808,6.52967644,83.088,83.022,59.51099095]
[1646618691008,6.019,83.087,83.022,59.51099095]
[1646618691406,6.019,83.089,83.022,59.51099095]
[1646618691606,6.52968628,83.088,83.022,59.51099095]
[1646618691806,6.019,83.087,83.022,59.51099095]
[1646618692009,6.52968628,83.086,83.022,59.51099095]
[1646618692207,6.019,83.085,83.022,59.51099095]
[1646618692706,6.019,83.089,83.022,59.51099095]
[1646618692908,6.52969036,83.088,83.022,59.51099095]
[1646618693111,6.019,83.087,83.022,59.51099095]
[1646618693308,6.52969036,83.086,83.022,59.51099095]
[1646618693507,6.019,83.085,83.022,59.51099095]
[1646618693906,6.019,83.089,83.022,59.51099095]
[1646618694308,6.52962795,83.088,83.022,59.51099095]
[1646618694511,6.019,83.087,83.022,59.51099095]
[1646618694709,6.52962795,83.088,83.03,18.0645]
[1646618694910,6.52962795,83.09,83.03,32.0045]
[1646618695311,3.12747564,83.105,83.03,152.5045]
[1646618695511,3.12747564,83.114,83.031,23.3373]
[1646618695713,6.019,83.132,83.031,23.3373]
[1646618695714,3.12747564,83.115,83.05,18.053]
[1646618695912,6.52962795,83.116,83.06,13.94]
[1646618696110,6.52962795,83.115,83.06,13.94]
[1646618696311,3.12747564,83.121,83.06,13.94]
[1646618696511,3.12747564,83.119,83.06,13.94]
[1646618696711,50.94875128,83.121,83.061,55.9637188]
[1646618696910,50.94875128,83.121,83.07,18.0539]
[1646618697114,12.54662795,83.12,83.07,18.0539]
[1646618697313,6.52962795,83.119,83.07,18.0539]
[1646618698613,6.017,83.124,83.07,18.0539]
[1646618698815,23.4621,83.131,83.07,18.0539]
[1646618699015,6.52672396,83.13,83.07,18.0539]
[1646618699216,51.15615114,83.129,83.07,18.0539]
[1646618699413,6.52672396,83.128,83.07,18.0539]
[1646618700414,6.52672396,83.128,83.061,55.9637188]
[1646618700615,6.017,83.127,83.061,55.9637188]
[1646618700918,3.12747564,83.121,83.051,24.7775]
[1646618701117,5.04821645,83.124,83.051,24.7775]
[1646618701118,3.12747564,83.115,83.051,24.7775]
[1646618701318,120.5,83.113,83.051,24.7775]
[1646618701518,133.04472396,83.112,83.051,24.7775]
[1646618701717,3.12747564,83.106,83.03,13.94]
[1646618701926,59.3188175,83.105,83.041,74.66429716]
[1646618702120,65.2824284,83.105,83.041,74.66429716]
[1646618702319,65.2824284,83.105,83.02,13.94]
[1646618702320,3.12747564,83.102,83.02,13.94]
[1646618702521,152.16947564,83.101,83.01,13.94]
[1646618702722,3.12747564,83.097,83.01,13.94]
[1646618702921,9.14647564,83.096,83.01,13.94]
[1646618703118,3.12747564,83.094,83.01,32.0085]
[1646618703319,6.52672396,83.095,83.011,55.31648897]
[1646618703519,9.6541996,83.099,83.011,55.31648897]
[1646618703919,6.52672396,83.099,83.011,55.31648897]
[1646618704920,6.52672396,83.099,83.02,18.0654]
[1646618705120,6.019,83.098,83.02,18.0654]
[1646618705519,6.52672396,83.097,83.02,18.0654]
[1646618705719,6.019,83.096,83.02,32.0054]
[1646618706220,6.52672396,83.095,83.02,32.0054]
[1646618706420,6.019,83.094,83.02,32.0054]
[1646618707022,6.019,83.099,83.02,32.0054]
[1646618707420,6.52982233,83.098,83.02,32.0054]
[1646618707622,6.019,83.097,83.02,32.0054]
[1646618707821,6.52982233,83.096,83.02,32.0054]
[1646618708226,6.52982233,83.097,83.02,32.0054]
[1646618708426,6.019,83.096,83.02,32.0054]
[1646618708626,6.52982233,83.095,83.02,32.0054]
[1646618708827,120.5,83.094,83.02,13.94]
[1646618709028,120.5,83.092,82.99,13.94]
[1646618709227,3.12747564,83.087,82.99,13.94]
[1646618709432,120.5,83.09,82.99,13.94]
[1646618709433,5.47527985,83.076,82.99,13.94]
[1646618709633,5.47527985,83.076,82.98,49.7372]
[1646618709634,3.12747564,83.068,82.98,49.7372]
[1646618709837,3.12747564,83.065,82.981,63.23653467]
[1646618710033,126.522,83.064,82.981,63.23653467]
[1646618710233,174.7751,83.064,82.981,63.23653467]
[1646618710532,177.61123526,83.064,82.981,63.23653467]
[1646618710735,2.83613526,83.063,82.981,63.23653467]
[1646618711835,2.83613526,83.063,82.99,18.0729]
[1646618713037,2.83613526,83.077,82.99,32.0129]
[1646618713452,3.12747564,83.086,82.99,32.0129]
[1646618713453,23.909,83.089,83.02,18.0633]
[1646618713651,23.909,83.089,83.02,32.0033]
[1646618714152,63.02909534,83.088,83.021,54.40765334]
[1646618714352,69.04809534,83.088,83.021,54.40765334]
[1646618714751,63.02909534,83.088,83.021,54.40765334]
[1646618715756,23.909,83.089,83.021,54.40765334]
[1646618715954,23.909,83.089,83.03,18.0645]
[1646618716753,24.3441,83.094,83.03,18.0645]
[1646618716754,24.3441,83.094,83.03,32.0045]
[1646618717853,60.48391569,83.11,83.03,32.0045]
[1646618718055,22.8434,83.121,83.03,32.0045]
[1646618718056,6.019,83.109,83.03,32.0045]
[1646618718256,46.6475,83.12,83.03,32.0045]
[1646618719058,54.06066636,83.119,83.03,32.0045]
[1646618719860,51.56066636,83.119,83.03,32.0045]
[1646618720062,6.018,83.118,83.03,32.0045]
[1646618720662,6.018,83.118,83.031,4.393]
[1646618720866,25.01451283,83.117,83.031,4.393]
[1646618721062,6.018,83.116,83.03,32.0045]
[1646618721463,126.518,83.116,83.03,32.0045]
[1646618721663,120.5,83.114,83.03,32.0045]
[1646618721865,6.018,83.113,83.03,32.0045]
[1646618722764,6.018,83.114,83.03,32.0045]
[1646618723364,126.518,83.114,83.03,32.0045]
[1646618723564,151.53251283,83.114,83.03,32.0045]
[1646618723766,120.5,83.112,83.03,32.0045]
[1646618723967,6.018,83.111,83.03,32.0045]
[1646618724165,24.8688,83.11,83.03,32.0045]
[1646618724366,6.019,83.109,83.03,32.0045]
[1646618731079,6.52932197,83.108,83.03,13.94]
[1646618731281,6.52932197,83.108,83.024,4.393]
[1646618731282,120.5,83.105,83.024,4.393]
[1646618731482,6.019,83.104,83.024,4.393]
[1646618731679,120.5,83.103,83.024,4.393]
[1646618731905,6.019,83.102,83.024,4.393]
[1646618732107,151.53351283,83.102,83.023,24.0196]
[1646618732304,31.03351283,83.102,83.023,24.0196]
[1646618732707,49.48762913,83.106,83.024,6.019]
[1646618732906,6.52890036,83.105,83.024,6.019]
[1646618734108,6.52890036,83.105,83.03,18.0646]
[1646618734312,57.90420196,83.086,83.031,6.019]
[1646618734711,59.52015891,83.086,83.031,6.019]
[1646618734912,57.90420196,83.086,83.031,6.019]
[1646618735415,59.52015891,83.086,83.031,6.019]
[1646618737314,57.90420196,83.086,83.031,6.019]
[1646618738816,57.40420196,83.086,83.031,6.019]
[1646618740116,1.61595695,83.082,83.031,6.019]
[1646618740716,1.61595695,83.081,83.031,6.019]
[1646618742314,1.61595695,83.082,83.031,6.019]
[1646618742715,1.61595695,83.074,83.031,6.019]
[1646618743118,1.61595695,83.073,83.031,6.019]
[1646618744116,64.60344283,83.073,83.031,6.019]
[1646618744617,1.61595695,83.073,83.031,6.019]
[1646618744818,1.61595695,83.073,83.04,18.0621]
[1646618745018,1.61595695,83.077,83.041,6.019]
[1646618745318,1.61595695,83.083,83.042,23.8637]
[1646618745718,62.62137477,83.082,83.043,48.8069283]
[1646618745921,64.23733172,83.082,83.043,48.8069283]
[1646618746120,64.23733172,83.082,83.044,6.019]
[1646618746420,1.61595695,83.082,83.044,6.019]
[1646618747321,1.61595695,83.084,83.044,6.019]
[1646618747521,1.61595695,83.084,83.045,23.0897]
[1646618747720,1.61595695,83.084,83.05,13.94]
[1646618747921,1.61595695,83.084,83.051,6.019]
[1646618748719,1.61595695,83.084,83.05,32.0001]
[1646618748920,1.61595695,83.083,83.05,13.94]
[1646618749419,1.61595695,83.083,83.043,48.8069283]
[1646618749620,1.61595695,83.082,83.043,48.8069283]
[1646618749820,1.61595695,83.082,83.044,6.019]
[1646618750022,1.61595695,83.079,83.044,6.019]
[1646618750221,1.61595695,83.078,83.044,6.019]
[1646618750422,50.60778551,83.074,83.043,48.8069283]
[1646618750624,52.22374246,83.074,83.031,6.019]
[1646618750821,1.61595695,83.073,83.03,32.0035]
[1646618751520,1.61595695,83.073,83.031,53.5220201]
[1646618751720,1.61595695,83.072,83.031,53.5220201]
[1646618752724,1.61595695,83.077,83.04,18.0621]
[1646618752924,1.61595695,83.086,83.041,6.019]
[1646618754025,53.11597065,83.087,83.041,6.019]
[1646618754224,51.5000137,83.087,83.045,46.22990498]
[1646618754426,51.5000137,83.087,83.046,6.019]
[1646618754625,1.61595695,83.084,83.045,46.22990498]
[1646618755227,1.61595695,83.083,83.045,46.22990498]
[1646618755632,1.61595695,83.082,83.045,46.22990498]
[1646618756428,1.61595695,83.081,83.045,46.22990498]
[1646618757731,1.61595695,83.082,83.045,46.22990498]
[1646618758153,1.61595695,83.082,83.04,18.0627]
[1646618758831,1.61595695,83.08,83.04,18.0627]
[1646618759031,1.61595695,83.08,83.041,48.61479842]
[1646618759438,1.61595695,83.081,83.041,48.61479842]
[1646618759832,1.61595695,83.079,83.041,48.61479842]
[1646618760532,1.61595695,83.08,83.041,48.61479842]
[1646618760738,1.61595695,83.081,83.041,48.61479842]
[1646618760934,1.61595695,83.082,83.041,48.61479842]
[1646618761934,1.61595695,83.081,83.041,48.61479842]
[1646618762133,1.61595695,83.081,83.033,6.019]
[1646618762333,51.5000137,83.087,83.033,6.019]
[1646618762334,1.61595695,83.076,83.033,6.019]
[1646618762533,23.9837,83.086,83.033,6.019]
[1646618762534,1.61595695,83.07,83.033,6.019]
[1646618762734,1.61595695,83.073,83.033,6.019]
[1646618762935,1.61595695,83.07,83.033,6.019]
[1646618763137,52.87164395,83.069,83.033,54.88917124]
[1646618764234,1.61595695,83.067,83.033,54.88917124]
[1646618764636,52.87164395,83.069,83.033,54.88917124]
[1646618765036,51.255687,83.069,83.033,54.88917124]
[1646618765236,52.87164395,83.069,83.033,54.88917124]
[1646618765435,23.9837,83.086,83.033,54.88917124]
[1646618765436,1.61595695,83.07,83.033,54.88917124]
[1646618765663,1.61595695,83.072,83.033,54.88917124]
[1646618766136,1.61595695,83.07,83.033,54.88917124]
[1646618766938,1.61595695,83.071,83.033,54.88917124]
[1646618768242,1.61595695,83.073,83.033,54.88917124]
[1646618769046,1.61595695,83.074,83.033,54.88917124]
[1646618769546,1.61595695,83.072,83.033,54.88917124]
[1646618769946,1.61595695,83.074,83.033,54.88917124]
[1646618770145,1.61595695,83.075,83.033,54.88917124]
[1646618770947,1.61595695,83.074,83.033,54.88917124]
[1646618771744,1.61595695,83.076,83.033,54.88917124]
[1646618772149,1.61595695,83.078,83.033,54.88917124]
[1646618772347,1.61595695,83.076,83.033,54.88917124]
[1646618772745,1.61595695,83.075,83.033,54.88917124]
[1646618773169,1.61595695,83.076,83.033,54.88917124]
[1646618773971,1.61595695,83.075,83.033,54.88917124]
[1646618774270,1.61595695,83.074,83.033,54.88917124]
[1646618777376,1.61595695,83.073,83.033,6.019]
[1646618777575,1.61595695,83.07,83.033,6.019]
[1646618778277,1.61595695,83.071,83.04,18.0617]
[1646618778576,1.61595695,83.075,83.04,18.0617]
[1646618778779,1.61595695,83.076,83.04,18.0617]
[1646618778976,1.61595695,83.075,83.04,18.0617]
[1646618779177,1.61595695,83.075,83.041,56.13944435]
[1646618779979,1.61595695,83.076,83.041,56.13944435]
[1646618780580,1.61595695,83.075,83.041,56.13944435]
[1646618781180,1.61595695,83.076,83.041,56.13944435]
[1646618781782,1.61595695,83.077,83.041,56.13944435]
[1646618781980,1.61595695,83.076,83.041,56.13944435]
[1646618782179,1.61595695,83.077,83.041,56.13944435]
[1646618783581,1.61595695,83.076,83.041,56.13944435]
[1646618783780,1.61595695,83.074,83.041,56.13944435]
[1646618783985,1.61595695,83.075,83.04,18.0617]
[1646618784180,1.61595695,83.074,83.04,18.0617]
[1646618784981,1.61595695,83.075,83.04,18.0617]
[1646618785182,1.61595695,83.075,83.033,6.019]
[1646618785686,1.61595695,83.074,83.033,6.019]
[1646618785886,1.61595695,83.075,83.033,6.019]
[1646618786284,1.61595695,83.072,83.033,6.019]
[1646618786485,1.61595695,83.071,83.033,6.019]
[1646618786883,64.29610129,83.08,83.033,6.019]
[1646618786884,1.61595695,83.065,83.033,6.019]
[1646618787084,64.27837926,83.064,83.033,6.019]
[1646618787485,65.89433621,83.064,83.033,6.019]
[1646618787986,65.89433621,83.064,83.03,18.0646]
[1646618790185,65.89433621,83.064,83.031,6.019]
[1646618790687,23.9837,83.086,83.015,6.019]
[1646618790688,1.61595695,83.063,83.015,6.019]
[1646618790886,6.019,83.085,83.015,6.019]
[1646618790887,1.61595695,83.065,83.015,6.019]
[1646618791087,1.61595695,83.069,83.015,6.019]
[1646618791489,1.61595695,83.07,83.015,6.019]
[1646618791691,56.59987214,83.069,83.016,56.16447164]
[1646618791891,56.59987214,83.069,83.017,6.021]
[1646618792090,1.61595695,83.069,83.02,18.0663]
[1646618792290,1.61595695,83.071,83.021,6.019]
[1646618792588,1.61595695,83.074,83.021,6.019]
[1646618792791,1.61595695,83.075,83.021,6.019]
[1646618793193,1.61595695,83.075,83.03,18.0631]
[1646618793388,1.61595695,83.076,83.031,57.68138498]
[1646618793588,1.61595695,83.077,83.031,57.68138498]
[1646618794290,1.61595695,83.075,83.031,57.68138498]
[1646618795190,1.61595695,83.073,83.031,57.68138498]
[1646618795490,1.61595695,83.072,83.032,0.46013067]
[1646618796694,1.61595695,83.07,83.032,0.46013067]
[1646618796894,1.61595695,83.069,83.032,0.46013067]
[1646618797593,1.61595695,83.07,83.032,0.46013067]
[1646618797995,1.61595695,83.07,83.033,6.019]
[1646618798292,1.61595695,83.071,83.032,0.46013067]
[1646618798893,1.61595695,83.071,83.034,0.46013067]
[1646618800395,1.61595695,83.072,83.034,0.46013067]
[1646618801797,1.61595695,83.072,83.035,6.019]
[1646618802196,1.61595695,83.072,83.033,6.019]
[1646618803901,1.61595695,83.071,83.033,6.019]
[1646618804100,1.61595695,83.074,83.033,6.019]
[1646618804301,1.61595695,83.072,83.033,6.019]
[1646618804503,1.61595695,83.076,83.04,18.0619]
[1646618804701,1.61595695,83.08,83.041,6.019]
[1646618804901,1.61595695,83.089,83.041,6.019]
[1646618805101,8.41,83.093,83.041,6.47913067]
[1646618805102,1.61595695,83.09,83.041,6.47913067]
[1646618805400,1.61595695,83.091,83.041,6.47913067]
[1646618805807,1.61595695,83.092,83.041,6.47913067]
[1646618806003,1.61595695,83.092,83.05,18.0546]
[1646618806203,8.41,83.093,83.06,13.94]
[1646618806403,8.41,83.093,83.061,6.018]
[1646618807026,8.41,83.093,83.07,18.0544]
[1646618807222,8.41,83.093,83.071,6.018]
[1646618808022,1.61595695,83.112,83.071,6.018]
[1646618808223,1.61595695,83.112,83.072,0.46013067]
[1646618808524,1.61595695,83.112,83.073,6.017]
[1646618808722,56.77562109,83.111,83.073,6.017]
[1646618809325,56.77562109,83.111,83.072,0.46013067]
[1646618809725,56.77562109,83.111,83.073,6.017]
[1646618809926,58.39157804,83.111,83.073,6.017]
[1646618810127,1.61595695,83.108,83.073,6.017]
[1646618810724,56.77562109,83.111,83.073,6.017]
[1646618811527,56.77562109,83.111,83.074,0.46013067]
[1646618811727,56.77562109,83.111,83.075,6.017]
[1646618811928,56.77562109,83.111,83.08,13.94]
[1646618812928,56.77562109,83.111,83.081,6.017]
[1646618814730,56.77562109,83.111,83.082,0.46013067]
[1646618821345,1.61595695,83.118,83.082,0.46013067]
[1646618821744,1.61595695,83.117,83.082,0.46013067]
[1646618821946,1.61595695,83.118,83.082,0.46013067]
[1646618822346,58.50016148,83.118,83.082,0.46013067]
[1646618825250,1.61595695,83.121,83.082,0.46013067]
[1646618825448,25.89825695,83.126,83.082,0.46013067]
[1646618825673,24.2823,83.126,83.082,0.46013067]
[1646618826274,24.2823,83.126,83.081,0.46013067]
[1646618831580,1.61595695,83.125,83.081,0.46013067]
[1646618832280,1.61595695,83.124,83.081,0.46013067]
[1646618832481,1.61595695,83.125,83.081,0.46013067]
[1646618833084,1.61595695,83.124,83.081,0.46013067]
[1646618833583,1.61595695,83.12,83.081,0.46013067]
[1646618833785,1.61595695,83.12,83.09,18.0506]
[1646618833984,1.61595695,83.125,83.1,13.94]
[1646618834184,1.61595695,83.127,83.11,13.94]
[1646618834384,1.61595695,83.132,83.11,13.94]
[1646618834884,1.61595695,83.135,83.11,62.95327277]
[1646618835084,1.61595695,83.135,83.11,80.99977277]
[1646618836385,1.61595695,83.136,83.11,80.99977277]
[1646618837188,1.61595695,83.137,83.11,80.99977277]
[1646618837387,1.61595695,83.138,83.11,80.99977277]
[1646618837888,1.61595695,83.138,83.111,0.46013067]
[1646618838289,1.61595695,83.139,83.111,0.46013067]
[1646618838490,1.61595695,83.134,83.111,0.46013067]
[1646618838892,1.61595695,83.127,83.111,0.46013067]
[1646618839090,1.61595695,83.126,83.111,0.46013067]
[1646618839292,1.61595695,83.128,83.111,0.46013067]
[1646618839490,46.78105827,83.134,83.111,0.46013067]
[1646618839491,1.61595695,83.129,83.111,0.46013067]
[1646618839890,1.61595695,83.13,83.111,0.46013067]
[1646618840791,1.61595695,83.129,83.111,0.46013067]
[1646618840992,1.61595695,83.13,83.111,0.46013067]
[1646618841194,1.61595695,83.128,83.111,0.46013067]
[1646618842194,1.61595695,83.129,83.111,0.46013067]
[1646618842594,1.61595695,83.127,83.111,0.46013067]
[1646618843595,1.61595695,83.129,83.111,0.46013067]
[1646618844419,1.61595695,83.128,83.111,0.46013067]
[1646618844897,1.61595695,83.129,83.111,0.46013067]
[1646618845495,1.61595695,83.128,83.111,0.46013067]
[1646618845896,50.0,83.127,83.07,13.94]
[1646618846096,1.61595695,83.119,83.07,13.94]
[1646618846296,1.61595695,83.109,83.07,13.94]
[1646618846495,1.61595695,83.108,83.07,13.94]
[1646618846698,52.49538278,83.105,83.07,13.94]
[1646618846995,52.49538278,83.105,83.071,6.017]
[1646618847195,54.11133973,83.105,83.071,6.017]
[1646618847596,1.61595695,83.101,83.071,6.017]
[1646618847896,1.61595695,83.103,83.071,6.017]
[1646618848302,1.61595695,83.103,83.07,13.94]
[1646618848497,1.61595695,83.104,83.07,13.94]
[1646618848897,1.61595695,83.103,83.07,13.94]
[1646618849297,1.61595695,83.104,83.05,13.94]
[1646618849497,1.61595695,83.092,83.035,24.6609]
[1646618849800,1.61595695,83.085,83.035,24.6609]
[1646618850197,50.93057057,83.084,83.036,60.57916848]
[1646618850398,23.9931,83.083,83.036,60.57916848]
[1646618851001,120.5,83.082,83.031,6.019]
[1646618851200,120.5,83.082,83.02,13.94]
[1646618851201,1.61595695,83.076,83.02,13.94]
[1646618851399,1.61595695,83.072,83.02,13.94]
[1646618851598,120.5,83.082,83.021,6.019]
[1646618851599,1.61595695,83.071,83.021,6.019]
[1646618852001,51.11365363,83.07,83.022,46.3051612]
[1646618852202,51.11365363,83.07,83.023,6.019]
[1646618852901,51.11365363,83.07,83.02,13.94]
[1646618853403,120.5,83.069,83.02,13.94]
[1646618854201,120.5,83.069,83.01,64.44449827]
[1646618854404,144.4596,83.068,83.01,64.44449827]
[1646618855003,144.4596,83.068,83.01,78.38449827]
[1646618856004,23.9596,83.068,83.01,78.38449827]
[1646618856202,144.4596,83.068,83.01,78.38449827]
[1646618856802,144.4596,83.068,83.01,13.94]
[1646618858508,120.5,83.066,83.01,13.94]
[1646618859305,6.021,83.065,83.01,13.94]
[1646618859705,6.021,83.066,83.01,13.94]
[1646618860910,6.021,83.066,83.0,88.90258942]
[1646618861514,6.021,83.066,83.0,32.0108]
[1646618862512,6.021,83.066,83.001,46.09481579]
[1646618863313,23.9596,83.068,83.001,46.09481579]
[1646618866612,23.9596,83.068,83.01,18.0685]
[1646618866812,23.9596,83.068,83.01,32.0085]
[1646618878445,1.61595695,83.063,83.01,32.0085]
[1646618878645,23.9596,83.068,83.01,32.0085]
[1646618878646,1.61595695,83.062,83.01,32.0085]
[1646618879446,1.61595695,83.059,83.01,13.94]
[1646618879646,1.61595695,83.056,83.01,13.94]
[1646618879847,58.34159492,83.055,83.01,13.94]
[1646618880247,59.95755187,83.055,83.01,13.94]
[1646618880447,1.61595695,83.052,83.01,32.0072]
[1646618880950,1.61595695,83.053,83.01,32.0072]
[1646618881350,1.61595695,83.053,83.01,13.94]
[1646618881548,1.61595695,83.052,83.01,13.94]
[1646618882550,1.61595695,83.053,83.01,13.94]
[1646618884551,24.44005695,83.054,83.01,13.94]
[1646618885351,1.61595695,83.053,83.01,13.94]
[1646618885551,24.44005695,83.054,83.01,13.94]
[1646618885750,1.61595695,83.053,83.01,13.94]
[1646618885950,1.61595695,83.045,82.99,13.94]
[1646618886249,22.8241,83.054,82.99,13.94]
[1646618886250,1.61595695,83.041,82.99,13.94]
[1646618886450,49.03668396,83.04,82.99,13.94]
[1646618886651,25.63685695,83.039,82.99,13.94]
[1646618886853,24.0209,83.039,82.99,13.94]
[1646618887052,1.61595695,83.038,82.99,13.94]
[1646618887453,25.63685695,83.039,82.99,13.94]
[1646618888153,24.0209,83.039,82.99,13.94]
[1646618888651,24.0209,83.039,82.99,32.0135]
[1646618889655,24.0209,83.039,82.99,13.94]
[1646618890054,1.61595695,83.025,82.99,13.94]
[1646618890254,1.61595695,83.023,82.99,13.94]
[1646618890453,1.61595695,83.023,82.982,23.7808]
[1646618890653,1.61595695,83.022,82.983,57.2439058]
[1646618890854,1.61595695,83.026,82.983,57.2439058]
[1646618891057,1.61595695,83.022,82.983,57.2439058]
[1646618891456,1.61595695,83.034,82.983,57.2439058]
[1646618891855,1.61595695,83.043,82.99,18.0733]
[1646618892057,1.61595695,83.045,83.0,13.94]
[1646618892257,1.61595695,83.045,83.001,47.15739044]
[1646618892456,1.61595695,83.039,83.001,47.15739044]
[1646618893058,1.61595695,83.04,83.001,47.15739044]
[1646618894457,1.61595695,83.042,83.001,47.15739044]
[1646618894858,1.61595695,83.04,83.001,47.15739044]
[1646618895058,24.0838,83.047,83.001,47.15739044]
[1646618895059,1.61595695,83.041,83.001,47.15739044]
[1646618895257,1.61595695,83.042,83.001,47.15739044]
[1646618895858,1.61595695,83.044,83.001,47.15739044]
[1646618896058,1.61595695,83.044,83.01,18.0684]
[1646618896259,24.0838,83.047,83.01,32.0084]
[1646618896860,6.022,83.093,83.01,32.0084]
[1646618896861,1.61595695,83.053,83.01,32.0084]
[1646618897059,1.61595695,83.053,83.011,24.2067]
[1646618897659,1.61595695,83.054,83.011,24.2067]
[1646618898059,1.61595695,83.053,83.011,24.2067]
[1646618899662,1.61595695,83.054,83.011,24.2067]
[1646618901969,1.61595695,83.055,83.011,24.2067]
[1646618902167,1.61595695,83.055,83.02,18.066]
[1646618902370,1.61595695,83.063,83.03,13.94]
[1646618902567,1.61595695,83.066,83.03,13.94]
[1646618902767,1.61595695,83.067,83.03,13.94]
[1646618902969,1.61595695,83.068,83.03,13.94]
[1646618903168,1.61595695,83.068,83.031,63.41822187]
[1646618903572,1.61595695,83.069,83.031,63.41822187]
[1646618904775,1.61595695,83.07,83.031,63.41822187]
[1646618907177,1.61595695,83.069,83.031,63.41822187]
[1646618907579,1.61595695,83.07,83.04,18.0621]
[1646618907778,1.61595695,83.071,83.04,32.0021]
[1646618907977,1.61595695,83.08,83.04,32.0021]
[1646618908195,1.61595695,83.082,83.04,32.0021]
[1646618908396,1.61595695,83.08,83.04,32.0021]
[1646618908595,1.61595695,83.081,83.04,32.0021]
[1646618909595,1.61595695,83.084,83.04,32.0021]
[1646618909996,23.3744,83.086,83.04,32.0021]
[1646618910596,1.61595695,83.088,83.04,32.0021]
[1646618910799,1.61595695,83.094,83.041,22.5277]
[1646618910999,1.61595695,83.102,83.05,18.0543]
[1646618911200,1.61595695,83.102,83.06,13.94]
[1646618911497,1.61595695,83.103,83.061,54.00222663]
[1646618911898,1.61595695,83.107,83.061,54.00222663]
[1646618912700,1.61595695,83.105,83.061,54.00222663]
[1646618912900,1.61595695,83.105,83.061,76.95642663]
[1646618913101,60.14752511,83.104,83.061,76.95642663]
[1646618913502,58.53156816,83.104,83.061,76.95642663]
[1646618913702,1.61595695,83.109,83.061,76.95642663]
[1646618914102,6.52731681,83.128,83.061,76.95642663]
[1646618914103,1.61595695,83.11,83.061,76.95642663]
[1646618914502,1.61595695,83.111,83.061,76.95642663]
[1646618914703,1.61595695,83.111,83.07,18.0554]
[1646618914902,1.61595695,83.112,83.07,31.9954]
[1646618915104,1.61595695,83.113,83.07,31.9954]
[1646618915604,1.61595695,83.112,83.07,31.9954]
[1646618916005,1.61595695,83.114,83.07,31.9954]
[1646618916207,1.61595695,83.115,83.07,31.9954]
[1646618916606,1.61595695,83.114,83.07,31.9954]
[1646618917808,1.61595695,83.115,83.07,31.9954]
[1646618918008,1.61595695,83.116,83.07,31.9954]
[1646618918407,1.61595695,83.115,83.07,31.9954]
[1646618918608,1.61595695,83.114,83.07,31.9954]
[1646618920109,25.42243625,83.113,83.07,13.94]
[1646618920313,1.61595695,83.111,83.061,22.9542]
[1646618920511,1.58243742,83.109,83.061,22.9542]
[1646618920710,25.42243625,83.113,83.061,22.9542]
[1646618921114,25.42243625,83.113,83.062,48.158574]
[1646618921711,24.7092,83.116,83.062,48.158574]
[1646618926719,24.7092,83.116,83.06,31.9976]
[1646618926943,24.7092,83.116,83.04,60.1932]
[1646618926944,25.42243625,83.115,83.04,13.94]
[1646618927120,140.37950408,83.114,83.03,13.94]
[1646618927319,120.5,83.112,83.02,13.94]
[1646618927521,3.12747564,83.11,83.021,22.5826]
[1646618927720,123.62747564,83.11,83.022,51.84202905]
[1646618927924,3.12747564,83.104,83.022,51.84202905]
[1646618928223,120.5,83.102,83.022,51.84202905]
[1646618928420,12.04756552,83.101,83.022,51.84202905]
[1646618928622,3.12747564,83.095,83.022,51.84202905]
[1646618928821,6.019,83.094,83.022,51.84202905]
[1646618929024,6.52856552,83.093,83.022,51.84202905]
[1646618929424,2.83613526,83.092,83.022,51.84202905]
[1646618930029,50.06143312,83.09,83.022,51.84202905]
[1646618930431,24.4728,83.089,83.022,51.84202905]
[1646618930832,120.5,83.087,83.022,51.84202905]
[1646618931031,6.53044484,83.086,83.022,51.84202905]
[1646618931229,12.54944484,83.086,83.022,51.84202905]
[1646618931430,6.53044484,83.085,83.022,51.84202905]
[1646618931833,6.019,83.086,83.022,51.84202905]
[1646618933034,6.019,83.088,83.022,51.84202905]
[1646618933433,24.4728,83.089,83.022,51.84202905]